bitfinex-derivatives/quotes_BTCF0:USTF0_20220102
["timestamp","ask_amount","ask_price","bid_price","bid_amount"]
[1641140411558,0.14033567,47395.0,47392.0,0.01198858]
[1641140412159,0.14033567,47395.0,47391.0,0.01198858]
[1641140416160,0.14033567,47395.0,47392.0,0.35298174]
[1641140416760,0.00962581,47394.0,47392.0,0.35298174]
[1641140417861,0.00962581,47394.0,47391.0,0.35298174]
[1641140418465,0.00962581,47394.0,47392.0,0.36496982]
[1641140419063,0.00962581,47394.0,47393.0,0.01198808]
[1641140419763,0.00962581,47394.0,47392.0,0.35298174]
[1641140420464,0.00962581,47394.0,47391.0,0.35298174]
[1641140421067,0.00962581,47394.0,47392.0,0.0119882]
[1641140423466,0.00962581,47394.0,47391.0,0.35298174]
[1641140424267,0.00962581,47394.0,47392.0,0.01198822]
[1641140425266,0.00962581,47394.0,47392.0,1.43228558]
[1641140425666,0.16662581,47394.0,47393.0,0.01198822]
[1641140425866,0.16662581,47394.0,47393.0,0.03308527]
[1641140426967,0.00962581,47394.0,47393.0,1.32308527]
[1641140427668,2.581e-05,47397.0,47393.0,1.46342094]
[1641140428469,2.581e-05,47397.0,47393.0,1.45143272]
[1641140428972,2.581e-05,47398.0,47395.0,1.11]
[1641140429170,2.581e-05,47398.0,47397.0,1.3217]
[1641140429573,2.581e-05,47398.0,47397.0,1.33368633]
[1641140429973,2.581e-05,47398.0,47397.0,0.01198633]
[1641140430174,9.049e-05,47400.0,47397.0,1.30198633]
[1641140430376,1.31585856,47409.0,47399.0,0.02109161]
[1641140430573,1.31585856,47409.0,47400.0,1.11]
[1641140430774,1.31585856,47409.0,47408.0,0.0210902]
[1641140431176,1.31585856,47409.0,47408.0,0.0220902]
[1641140431374,1.31585856,47409.0,47408.0,1.4011502]
[1641140431579,0.0899019,47409.0,47408.0,0.43148587]
[1641140431774,1.31585856,47414.0,47408.0,0.43148587]
[1641140431775,1.31585856,47414.0,47408.0,0.79548587]
[1641140431974,1.31585856,47414.0,47408.0,0.79448587]
[1641140432175,1.31585856,47414.0,47410.0,0.2107]
[1641140432374,1.31585856,47414.0,47413.0,0.18]
[1641140432575,1.31585856,47414.0,47413.0,1.52178598]
[1641140432775,0.14033567,47422.0,47413.0,1.52178598]
[1641140432776,1.31585856,47422.0,47413.0,1.51268329]
[1641140432975,1.31585856,47422.0,47413.0,1.33268329]
[1641140433175,1.31585856,47422.0,47415.0,1.11]
[1641140433376,1.31585856,47422.0,47418.0,0.02108598]
[1641140433977,0.18,47426.0,47418.0,0.02108598]
[1641140434179,0.1849404,47429.0,47418.0,0.10080598]
[1641140434580,0.20108656,47434.0,47418.0,0.07972]
[1641140434876,0.20108656,47434.0,47418.0,1.18972]
[1641140435077,0.18,47429.0,47418.0,1.2108056]
[1641140435477,0.18,47429.0,47418.0,0.1008056]
[1641140435677,0.13586308,47435.0,47418.0,1.3438056]
[1641140435879,0.18,47429.0,47418.0,0.2338056]
[1641140436782,0.18,47429.0,47418.0,1.3438056]
[1641140436982,0.18,47429.0,47418.0,1.2108056]
[1641140437279,0.13586308,47435.0,47419.0,1.3207]
[1641140437881,0.13586308,47435.0,47423.0,1.3417837]
[1641140438081,0.13586308,47435.0,47423.0,1.3207]
[1641140438781,0.13586308,47435.0,47423.0,1.3417837]
[1641140439384,0.13586308,47435.0,47423.0,1.3207]
[1641140439581,0.13586308,47435.0,47423.0,1.3417837]
[1641140439782,0.30433567,47427.0,47423.0,1.5207837]
[1641140440582,0.30433567,47427.0,47423.0,1.4997]
[1641140441283,0.14033567,47427.0,47423.0,1.3417837]
[1641140441682,0.30133567,47427.0,47423.0,1.5207837]
[1641140443086,0.14033567,47427.0,47423.0,1.3417837]
[1641140443686,0.32233567,47427.0,47423.0,1.5217837]
[1641140444088,0.32233567,47427.0,47423.0,0.4117837]
[1641140444491,0.32233567,47427.0,47423.0,0.2010837]
[1641140445103,0.32033567,47427.0,47417.0,0.14033567]
[1641140445303,0.18,47423.0,47417.0,0.14033567]
[1641140445703,0.18,47419.0,47413.0,1.11]
[1641140445903,0.18,47419.0,47412.0,0.34900268]
[1641140446504,0.00832158,47418.0,47413.0,0.2107]
[1641140447205,0.00832158,47420.0,47413.0,0.2107]
[1641140447405,0.00832158,47417.0,47413.0,0.2107]
[1641140447605,0.07629,47417.0,47413.0,0.2107]
[1641140447805,0.00832158,47416.0,47413.0,0.3597]
[1641140449107,0.00832158,47416.0,47413.0,0.2107]
[1641140449806,0.19232158,47416.0,47413.0,0.3907]
[1641140450410,0.00832158,47415.0,47413.0,0.3907]
[1641140451011,0.00832158,47415.0,47413.0,0.2107]
[1641140451414,0.00832158,47416.0,47413.0,0.2107]
[1641140451613,0.00832158,47414.0,47413.0,0.2107]
[1641140451814,0.07629,47417.0,47413.0,0.3917]
[1641140451815,0.19232158,47415.0,47413.0,0.3917]
[1641140452015,0.00832158,47414.0,47413.0,0.3917]
[1641140453113,0.00832158,47414.0,47413.0,0.2107]
[1641140453412,0.18832158,47414.0,47409.0,0.02108976]
[1641140453613,0.18,47414.0,47409.0,0.02108976]
[1641140453813,0.18,47411.0,47406.0,0.34900268]
[1641140454113,0.18,47408.0,47406.0,0.34900268]
[1641140455115,0.18,47408.0,47404.0,0.58167114]
[1641140455313,0.18,47407.0,47403.0,0.48933835]
[1641140455513,0.27297,47407.0,47403.0,0.48933835]
[1641140455713,0.09297,47407.0,47403.0,0.48933835]
[1641140456513,0.09297,47407.0,47403.0,0.14033567]
[1641140457615,0.09297,47407.0,47402.0,0.2107]
[1641140457616,0.27297,47407.0,47402.0,0.2107]
[1641140457814,0.46197,47407.0,47402.0,0.2107]
[1641140458017,0.60230567,47407.0,47402.0,0.2107]
[1641140458416,0.42230567,47407.0,47405.0,1.40498442]
[1641140459017,0.23330567,47407.0,47405.0,1.40498442]
[1641140459316,0.23330567,47407.0,47404.0,1.40498442]
[1641140459719,0.42130567,47407.0,47404.0,1.40498442]
[1641140460117,0.42130567,47407.0,47405.0,1.40498442]
[1641140461019,0.23330567,47407.0,47405.0,1.40498442]
[1641140461718,0.42430567,47407.0,47405.0,1.40498442]
[1641140462417,0.42430567,47407.0,47399.0,0.23179414]
[1641140462619,0.42430567,47407.0,47406.0,0.82287255]
[1641140463019,0.23330567,47407.0,47406.0,0.82287255]
[1641140463621,0.14033567,47407.0,47406.0,0.82287255]
[1641140463820,0.33233567,47407.0,47406.0,0.82287255]
[1641140464220,0.33233567,47407.0,47406.0,0.85594703]
[1641140464621,0.33233567,47407.0,47406.0,0.03307448]
[1641140465222,0.14033567,47407.0,47406.0,0.03307448]
[1641140465823,0.33133567,47407.0,47406.0,0.03307448]
[1641140466926,0.33133567,47407.0,47406.0,1.14307448]
[1641140467124,0.14033567,47407.0,47406.0,1.14307448]
[1641140467525,0.35823852,47419.0,47406.0,1.14307448]
[1641140467824,0.35823852,47419.0,47413.0,0.02108795]
[1641140468025,0.35823852,47419.0,47418.0,0.001]
[1641140468624,0.49857419,47420.0,47418.0,0.001]
[1641140468824,0.49857419,47420.0,47419.0,0.001]
[1641140469830,0.33033567,47420.0,47419.0,0.001]
[1641140470127,0.33033567,47420.0,47417.0,0.35200443]
[1641140470928,0.33033567,47420.0,47417.0,0.56270443]
[1641140471829,0.32933567,47420.0,47417.0,0.56270443]
[1641140472229,0.32933567,47420.0,47417.0,0.2107]
[1641140473128,0.18,47419.0,47417.0,0.2107]
[1641140473330,0.18,47419.0,47416.0,0.35200443]
[1641140473728,0.368,47419.0,47416.0,0.35200443]
[1641140474630,0.22272468,47415.0,47414.0,0.35200443]
[1641140474830,0.45942468,47415.0,47414.0,0.35200443]
[1641140475229,0.27942468,47415.0,47414.0,0.35200443]
[1641140475429,0.0567,47415.0,47414.0,0.35200443]
[1641140475932,0.19,47415.0,47414.0,0.35200443]
[1641140476331,0.19,47415.0,47414.0,0.56270443]
[1641140477131,0.009794,47419.0,47414.0,0.56270443]
[1641140477331,0.36803252,47419.0,47413.0,0.35200443]
[1641140477733,0.55603252,47419.0,47413.0,0.35200443]
[1641140478333,0.55603252,47419.0,47413.0,0.56270443]
[1641140479033,0.197794,47419.0,47413.0,0.56270443]
[1641140479236,0.009794,47419.0,47413.0,0.2107]
[1641140479535,0.5970642,47415.0,47413.0,0.2107]
[1641140479938,0.5970642,47415.0,47410.0,1.40498442]
[1641140480438,0.35955096,47414.0,47411.0,1.41696778]
[1641140480839,0.35955096,47414.0,47412.0,0.2107]
[1641140481840,0.54955096,47414.0,47412.0,0.2107]
[1641140483039,0.35955096,47413.0,47412.0,0.2107]
[1641140483639,0.5765128,47413.0,47412.0,0.01198346]
[1641140483840,0.5765128,47413.0,47411.0,1.40498442]
[1641140483841,0.7665128,47413.0,47411.0,1.40498442]
[1641140484040,0.41528081,47413.0,47411.0,1.40498442]
[1641140484240,0.00831897,47412.0,47411.0,1.40498442]
[1641140485043,0.00831897,47412.0,47409.0,0.2107]
[1641140485842,0.20031897,47412.0,47410.0,0.01198385]
[1641140486243,0.20031897,47412.0,47409.0,0.29255]
[1641140486444,0.3678883,47411.0,47409.0,0.29255]
[1641140486945,0.00831897,47410.0,47409.0,0.29255]
[1641140487845,0.5608883,47410.0,47409.0,0.32562361]
[1641140488645,0.20131897,47410.0,47409.0,1.73060803]
[1641140489144,0.00831897,47410.0,47409.0,1.73060803]
[1641140489345,0.00831897,47410.0,47409.0,1.51990803]
[1641140489946,0.193,47410.0,47409.0,1.51990803]
[1641140490146,0.20131897,47410.0,47409.0,1.51990803]
[1641140490348,0.20131897,47410.0,47409.0,0.32562361]
[1641140490552,0.20131897,47410.0,47409.0,0.11492361]
[1641140490747,0.20131897,47410.0,47409.0,0.03307361]
[1641140491248,0.00831897,47410.0,47409.0,0.03307361]
[1641140491849,0.20331897,47410.0,47409.0,0.03307361]
[1641140492248,0.20331897,47410.0,47409.0,0.24477361]
[1641140492851,0.20331897,47410.0,47409.0,0.42477361]
[1641140493052,0.20331897,47410.0,47409.0,0.10362361]
[1641140493749,0.00831897,47410.0,47409.0,0.10362361]
[1641140493950,0.20331897,47410.0,47409.0,0.10362361]
[1641140494150,0.20331897,47410.0,47409.0,0.31432361]
[1641140494550,0.20331897,47410.0,47409.0,1.69821819]
[1641140495150,0.20331897,47410.0,47409.0,1.68623442]
[1641140495349,0.20331897,47410.0,47409.0,0.29323413]
[1641140495550,0.20331897,47410.0,47409.0,0.28125]
[1641140495752,0.20331897,47410.0,47409.0,0.29323403]
[1641140495753,0.00831897,47410.0,47409.0,0.29323403]
[1641140495949,0.20131897,47410.0,47409.0,0.08253403]
[1641140496150,0.38131897,47410.0,47409.0,0.01198403]
[1641140496349,0.38131897,47410.0,47408.0,1.40498442]
[1641140496550,0.20131897,47410.0,47408.0,1.40498442]
[1641140496749,0.00831897,47409.0,47407.0,1.40498442]
[1641140496951,0.00831897,47409.0,47407.0,1.61568442]
[1641140497952,0.20031897,47409.0,47407.0,1.61568442]
[1641140498353,0.00831897,47408.0,47407.0,1.61568442]
[1641140498851,0.00831897,47408.0,47407.0,1.62766873]
[1641140499051,0.00831897,47408.0,47407.0,0.22268431]
[1641140499851,0.194,47408.0,47407.0,0.22268431]
[1641140500053,0.20231897,47408.0,47407.0,0.22268431]
[1641140500957,0.20231897,47408.0,47407.0,1.62766873]
[1641140501153,0.00831897,47408.0,47407.0,1.62766873]
[1641140501757,0.00831897,47409.0,47407.0,1.62766873]
[1641140501954,0.194,47408.0,47407.0,1.62766873]
[1641140502154,0.20231897,47408.0,47407.0,1.61568442]
[1641140502556,0.20231897,47408.0,47407.0,1.62766878]
[1641140503153,0.00831897,47408.0,47407.0,1.62766878]
[1641140503855,0.194,47408.0,47407.0,1.62766878]
[1641140504256,0.20231897,47408.0,47407.0,1.62766878]
[1641140505156,0.20231897,47408.0,47407.0,0.22268436]
[1641140505455,0.00831897,47408.0,47407.0,0.22268436]
[1641140505855,0.20131897,47408.0,47407.0,0.22268436]
[1641140506055,0.193,47408.0,47407.0,0.22268436]
[1641140506258,0.20131897,47408.0,47407.0,0.22268436]
[1641140506458,0.20131897,47408.0,47407.0,1.62766878]
[1641140507256,0.00831897,47408.0,47407.0,1.62766878]
[1641140507657,0.3678883,47409.0,47407.0,0.22268436]
[1641140507858,0.193,47408.0,47407.0,0.22268436]
[1641140508058,0.20131897,47408.0,47407.0,0.22268436]
[1641140509159,0.00831897,47408.0,47407.0,0.22268436]
[1641140509865,0.20231897,47408.0,47407.0,0.22268436]
[1641140510867,0.20231897,47408.0,47407.0,1.62766878]
[1641140511270,0.00831897,47408.0,47407.0,1.62766878]
[1641140511669,0.00831897,47409.0,47407.0,1.62766878]
[1641140511869,0.195,47408.0,47407.0,1.62766878]
[1641140512068,0.20331897,47408.0,47407.0,1.62766878]
[1641140513170,0.00831897,47408.0,47407.0,1.62766878]
[1641140513874,0.195,47408.0,47407.0,1.62766878]
[1641140514273,0.20331897,47408.0,47407.0,2.93875872]
[1641140514474,0.20331897,47408.0,47407.0,1.73674927]
[1641140515072,0.195,47408.0,47407.0,1.80150181]
[1641140515275,0.35956933,47411.0,47407.0,1.80150181]
[1641140515473,0.35956933,47411.0,47410.0,1.5017]
[1641140515674,0.35956933,47411.0,47410.0,1.56812]
[1641140515873,0.186,47411.0,47410.0,1.57581374]
[1641140516080,0.186,47411.0,47410.0,1.5877981]
[1641140516482,0.186,47411.0,47410.0,1.59488092]
[1641140516680,0.186,47411.0,47410.0,1.75043553]
[1641140517179,0.19431907,47411.0,47410.0,1.54690961]
[1641140517380,0.00831907,47411.0,47410.0,1.54690961]
[1641140517582,0.00831907,47411.0,47410.0,1.54694757]
[1641140517781,0.3678884,47418.0,47410.0,1.54694757]
[1641140517981,0.3678884,47418.0,47410.0,1.54568351]
[1641140518184,0.00831907,47411.0,47410.0,1.75511945]
[1641140518382,0.00831907,47417.0,47410.0,1.74413509]
[1641140518583,0.00831907,47411.0,47410.0,0.59745567]
[1641140518781,0.00831907,47417.0,47410.0,0.59845567]
[1641140518985,0.00831907,47417.0,47410.0,0.59745567]
[1641140519281,0.00831907,47417.0,47415.0,0.2107]
[1641140520486,0.00831907,47417.0,47415.0,1.62170354]
[1641140520786,0.00831907,47417.0,47416.0,0.35103567]
[1641140522586,0.3678884,47417.0,47416.0,0.35103567]
[1641140523886,0.00831907,47417.0,47416.0,0.35103567]
[1641140532096,0.00831907,47417.0,47416.0,0.14033567]
[1641140533101,0.00831907,47417.0,47416.0,0.35103567]
[1641140533598,0.00831907,47418.0,47416.0,0.35103567]
[1641140533797,0.00831907,47417.0,47416.0,0.35103567]
[1641140534097,0.00831907,47417.0,47416.0,0.14033567]
[1641140534297,0.00831907,47417.0,47415.0,1.41100354]
[1641140534800,0.18,47416.0,47415.0,1.41100354]
[1641140535200,0.18831907,47416.0,47415.0,1.42298637]
[1641140535999,0.18831907,47416.0,47415.0,1.41100354]
[1641140536200,0.18831907,47416.0,47413.0,1.41100354]
[1641140536600,0.00831907,47415.0,47414.0,0.01198301]
[1641140537802,0.00831907,47415.0,47411.0,0.22268301]
[1641140538002,0.00831907,47415.0,47414.0,0.01198301]
[1641140538204,0.00831907,47415.0,47412.0,0.01198301]
[1641140538403,0.00831907,47415.0,47411.0,0.2107]
[1641140538803,0.00831907,47415.0,47412.0,0.01198337]
[1641140540704,0.00831907,47417.0,47412.0,0.01198337]
[1641140541107,0.00831907,47414.0,47412.0,0.01198337]
[1641140541307,0.00831907,47416.0,47412.0,0.01198337]
[1641140541707,0.00831907,47417.0,47412.0,0.01198337]
[1641140541906,0.00831907,47415.0,47412.0,0.01198337]
[1641140542410,0.00831907,47417.0,47412.0,0.01198337]
[1641140543106,0.42181404,47415.0,47412.0,0.01198337]
[1641140543707,0.00831907,47414.0,47412.0,0.01198337]
[1641140544512,0.00831907,47414.0,47408.0,0.01198337]
[1641140544710,0.00831907,47414.0,47407.0,0.16142561]
[1641140545112,0.00831907,47414.0,47409.0,0.01198341]
[1641140545314,0.18831907,47414.0,47409.0,0.01198341]
[1641140545513,0.42184159,47412.0,47408.0,0.01198341]
[1641140545714,0.42184159,47412.0,47410.0,0.01198341]
[1641140546116,0.00831907,47411.0,47409.0,0.01198341]
[1641140546315,0.00831907,47411.0,47407.0,0.35103567]
[1641140547013,0.00831907,47411.0,47407.0,0.2107]
[1641140547416,0.00831907,47411.0,47408.0,0.0210904]
[1641140553225,0.00831907,47411.0,47410.0,1.41100354]
[1641140554124,0.43016686,47411.0,47410.0,1.41100354]
[1641140555124,0.61016686,47411.0,47410.0,1.41100354]
[1641140555422,0.43016686,47411.0,47410.0,1.41100354]
[1641140555622,0.43016686,47411.0,47409.0,1.41100354]
[1641140556022,0.00831907,47410.0,47409.0,1.41100354]
[1641140558433,0.00831907,47410.0,47405.0,0.2107]
[1641140560138,0.00831907,47410.0,47406.0,1.410077]
[1641140560336,0.00831907,47410.0,47407.0,0.2107]
[1641140561539,0.00831907,47410.0,47408.0,0.01198392]
[1641140576150,0.35956933,47415.0,47408.0,1.33268392]
[1641140576350,1.31585856,47424.0,47414.0,0.02108451]
[1641140576550,1.8728,47439.0,47423.0,0.18]
[1641140576751,1.8728,47439.0,47427.0,0.2117]
[1641140576950,1.31752491,47429.0,47427.0,1.3217]
[1641140577149,1.31752491,47429.0,47428.0,0.001]
[1641140577349,1.31752491,47429.0,47428.0,0.35203567]
[1641140577550,1.31752491,47429.0,47428.0,0.14033567]
[1641140577749,1.32472369,47429.0,47428.0,0.14033567]
[1641140578151,1.32472369,47429.0,47419.0,0.02108531]
[1641140578353,1.41796369,47429.0,47409.0,2.1542]
[1641140578549,0.18,47426.0,47415.0,0.02108694]
[1641140578749,0.10043878,47429.0,47415.0,0.02108694]
[1641140579150,0.10043878,47429.0,47422.0,1.410077]
[1641140579151,0.00719878,47428.0,47422.0,1.410077]
[1641140579351,0.14033567,47425.0,47422.0,1.410077]
[1641140579752,0.00719878,47424.0,47422.0,1.410077]
[1641140580451,0.00719878,47424.0,47418.0,1.43116286]
[1641140581051,0.00719878,47424.0,47419.0,0.01198112]
[1641140582051,0.00719878,47424.0,47420.0,1.43116168]
[1641140583456,0.00719878,47424.0,47421.0,1.410077]
[1641140584056,0.36834872,47424.0,47421.0,1.410077]
[1641140584254,0.18,47423.0,47421.0,1.410077]
[1641140584653,0.00719878,47422.0,47421.0,1.410077]
[1641140585253,0.00719878,47423.0,47421.0,1.63275805]
[1641140585454,0.00719878,47422.0,47421.0,1.63275805]
[1641140585654,0.00719878,47422.0,47421.0,1.620777]
[1641140586057,0.00719878,47423.0,47421.0,1.620777]
[1641140586256,0.14033567,47425.0,47422.0,0.18]
[1641140586554,0.14033567,47425.0,47424.0,0.02108302]
[1641140587356,0.14033567,47425.0,47421.0,0.2107]
[1641140587956,0.14033567,47425.0,47423.0,0.58656099]
[1641140588956,0.14033567,47425.0,47424.0,0.35202208]
[1641140590357,0.14033567,47425.0,47422.0,0.58656099]
[1641140590358,0.14033567,47425.0,47422.0,1.40774638]
[1641140590559,0.14033567,47425.0,47423.0,0.58656099]
[1641140592763,0.14033567,47425.0,47424.0,0.35214035]
[1641140593770,0.14033567,47425.0,47423.0,0.58656099]
[1641140600571,0.14033567,47425.0,47424.0,0.58656099]
[1641140601374,0.14754542,47425.0,47424.0,0.58656099]
[1641140601971,0.00720975,47425.0,47424.0,1.69656099]
[1641140602374,0.00720975,47429.0,47424.0,1.70854066]
[1641140602572,0.00720975,47425.0,47424.0,1.70854066]
[1641140602772,0.00720975,47425.0,47424.0,1.71764324]
[1641140602972,0.00720975,47428.0,47427.0,0.2107]
[1641140603174,0.14033567,47430.0,47427.0,0.28167]
[1641140603372,0.14033567,47430.0,47427.0,0.06997]
[1641140604574,0.14033567,47430.0,47424.0,0.23178225]
[1641140605176,0.14033567,47430.0,47428.0,0.2107]
[1641140605474,0.49980751,47430.0,47428.0,0.2107]
[1641140605874,0.49980751,47430.0,47428.0,1.3207]
[1641140606275,0.14033567,47430.0,47428.0,2.72844639]
[1641140606975,0.14033567,47430.0,47429.0,1.61844639]
[1641140608877,0.14033567,47430.0,47429.0,0.2107]
[1641140609877,0.14033567,47430.0,47429.0,1.3207]
[1641140610678,0.14033567,47430.0,47429.0,1.52178052]
[1641140610978,0.14033567,47430.0,47429.0,2.74952691]
[1641140611378,0.35947184,47432.0,47429.0,1.34178052]
[1641140611578,0.35947184,47434.0,47429.0,1.34178052]
[1641140612380,0.35947184,47433.0,47431.0,1.41809069]
[1641140613693,0.35947184,47433.0,47430.0,1.41809069]
[1641140614891,0.35947184,47433.0,47430.0,2.52809069]
[1641140615092,0.35947184,47433.0,47431.0,1.41809069]
[1641140618096,0.00720039,47432.0,47431.0,1.41809069]
[1641140618896,0.00720039,47432.0,47430.0,1.41809069]
[1641140621298,0.36667223,47432.0,47429.0,1.64987121]
[1641140621898,0.35947184,47434.0,47431.0,1.41809069]
[1641140622098,0.18,47432.0,47431.0,1.41809069]
[1641140622299,0.23977,47432.0,47431.0,1.41809069]
[1641140622501,0.23977,47432.0,47431.0,0.99641]
[1641140622798,0.59924184,47432.0,47423.0,0.14033567]
[1641140622998,0.18,47427.0,47424.0,0.2107]
[1641140623198,0.18,47427.0,47423.0,0.14033567]
[1641140623398,0.18,47427.0,47424.0,0.01197995]
[1641140624201,0.49980751,47428.0,47424.0,0.01197995]
[1641140624398,0.49980751,47428.0,47423.0,0.01197995]
[1641140624798,0.49980751,47428.0,47422.0,0.01197995]
[1641140624999,0.49980751,47428.0,47424.0,0.01197995]
[1641140625499,0.49980751,47428.0,47423.0,0.01197995]
[1641140625699,0.18,47426.0,47423.0,0.01197995]
[1641140625900,0.18,47426.0,47421.0,0.02108459]
[1641140626098,0.18,47426.0,47424.0,0.01198015]
[1641140626299,0.18,47426.0,47422.0,0.01198015]
[1641140626800,0.14033567,47428.0,47422.0,0.01198015]
[1641140627702,0.14033567,47428.0,47424.0,0.2107]
[1641140628302,0.14033567,47428.0,47425.0,0.01198015]
[1641140628704,0.14033567,47428.0,47424.0,1.62897982]
[1641140629102,0.14033567,47428.0,47425.0,0.01197991]
[1641140630604,0.14033567,47428.0,47425.0,1.43025973]
[1641140631005,0.18,47426.0,47425.0,1.41827982]
[1641140631204,0.25308,47426.0,47425.0,1.41827982]
[1641140631404,0.25308,47426.0,47420.0,0.93072333]
[1641140631808,0.07308,47426.0,47420.0,0.93072333]
[1641140632005,0.009794,47425.0,47420.0,0.93072333]
[1641140633308,0.009794,47425.0,47419.0,0.02108532]
[1641140634308,0.189794,47425.0,47419.0,0.02108532]
[1641140634512,0.60175134,47422.0,47417.0,1.548523]
[1641140636010,0.60175134,47422.0,47414.0,1.56961044]
[1641140636412,0.18,47418.0,47414.0,1.548523]
[1641140636611,0.60178249,47418.0,47414.0,1.548523]
[1641140637214,0.00720331,47417.0,47414.0,1.548523]
[1641140637614,0.00720331,47417.0,47411.0,1.56961203]
[1641140637812,0.00720331,47417.0,47411.0,1.548523]
[1641140638417,0.18,47414.0,47411.0,1.548523]
[1641140638616,0.24915,47414.0,47411.0,1.548523]
[1641140639017,0.00720331,47413.0,47411.0,1.548523]
[1641140639817,0.00720331,47413.0,47410.0,0.72002333]
[1641140640018,0.00720331,47413.0,47409.0,1.759223]
[1641140641518,0.00720331,47413.0,47409.0,0.2107]
[1641140644025,0.00720331,47413.0,47409.0,1.759223]
[1641140645928,0.00720331,47413.0,47409.0,0.2107]
[1641140646126,0.00720331,47413.0,47410.0,0.07986309]
[1641140646526,0.00720331,47413.0,47411.0,0.01198232]
[1641140647126,0.00720331,47413.0,47410.0,0.01198232]
[1641140647527,0.00720331,47413.0,47412.0,0.01198232]
[1641140647827,0.00720331,47413.0,47411.0,0.01198232]
[1641140648327,0.00720331,47413.0,47412.0,0.01198232]
[1641140648530,0.00720331,47413.0,47412.0,0.08509232]
[1641140648927,0.00720331,47413.0,47412.0,0.07311]
[1641140649128,0.00720331,47413.0,47412.0,0.08509232]
[1641140649328,0.00720331,47413.0,47412.0,0.10618057]
[1641140653635,0.00720331,47413.0,47412.0,1.21618083]
[1641140653833,0.00720331,47418.0,47412.0,1.21618083]
[1641140654237,0.4998782,47420.0,47412.0,1.3565165]
[1641140654637,0.00720506,47419.0,47413.0,0.01198232]
[1641140655251,0.00720506,47419.0,47414.0,0.18]
[1641140655553,0.00720506,47419.0,47416.0,1.11]
[1641140655752,0.00720506,47419.0,47417.0,1.42010134]
[1641140656153,0.36674759,47427.0,47417.0,1.43208366]
[1641140656353,0.35954253,47427.0,47418.0,0.01198232]
[1641140656754,0.4998782,47428.0,47418.0,1.43208366]
[1641140657353,0.18,47426.0,47419.0,0.01198232]
[1641140658355,0.18,47426.0,47418.0,1.42010134]
[1641140658555,0.2009516,47425.0,47418.0,1.42010134]
[1641140658857,0.2107456,47425.0,47418.0,1.42010134]
[1641140659256,0.2107456,47425.0,47417.0,0.14033567]
[1641140659856,0.2107456,47425.0,47418.0,0.01198183]
[1641140660057,0.2107456,47425.0,47418.0,0.10387183]
[1641140660458,0.57028813,47425.0,47418.0,0.10387183]
[1641140660660,0.57028813,47425.0,47418.0,0.09189]
[1641140661060,0.2107456,47425.0,47419.0,0.01198161]
[1641140661463,0.2107456,47425.0,47418.0,0.09189]
[1641140661862,0.2107456,47425.0,47419.0,0.01198162]
[1641140664563,0.2009516,47425.0,47419.0,0.01198162]
[1641140664762,0.14033567,47428.0,47421.0,3.22331841]
[1641140665161,0.14033567,47428.0,47422.0,0.01198162]
[1641140665567,0.14033567,47428.0,47422.0,0.94270495]
[1641140665963,0.59799556,47431.0,47426.0,0.3907]
[1641140666164,1.31812496,47438.0,47427.0,1.11]
[1641140666165,1.8786,47437.0,47427.0,1.11]
[1641140666365,1.31812496,47438.0,47436.0,0.28067134]
[1641140666567,1.31812496,47438.0,47436.0,0.35730134]
[1641140666764,0.28928797,47439.0,47436.0,0.35730134]
[1641140667765,1.31812496,47441.0,47436.0,0.35730134]
[1641140667966,0.53384709,47445.0,47436.0,0.35730134]
[1641140668166,0.18,47441.0,47436.0,0.35730134]
[1641140668970,0.18,47441.0,47440.0,0.3547526]
[1641140670474,0.18,47441.0,47436.0,0.28067134]
[1641140671173,0.39086891,47440.0,47436.0,0.28067134]
[1641140671372,0.39807004,47440.0,47436.0,0.28067134]
[1641140671573,0.00720113,47439.0,47436.0,0.28067134]
[1641140672272,0.40934338,47438.0,47436.0,0.28067134]
[1641140672672,0.00720113,47437.0,47436.0,0.28067134]
[1641140673772,0.18720113,47437.0,47436.0,0.28067134]
[1641140674976,0.14096987,47434.0,47431.0,0.14033567]
[1641140675375,0.00720113,47433.0,47431.0,0.14033567]
[1641140675876,0.00720113,47436.0,47429.0,1.42010134]
[1641140676075,0.00720113,47432.0,47429.0,1.42010134]
[1641140676375,0.00720113,47435.0,47429.0,1.42010134]
[1641140676574,0.00720113,47431.0,47426.0,0.14033567]
[1641140677075,0.00720113,47430.0,47427.0,0.01197962]
[1641140677277,0.00720113,47430.0,47427.0,0.22267962]
[1641140677674,0.00720113,47435.0,47427.0,0.2107]
[1641140677876,0.00720113,47435.0,47428.0,0.02108131]
[1641140678076,0.00720113,47429.0,47428.0,0.03306048]
[1641140678276,0.00720113,47434.0,47428.0,0.02108131]
[1641140678475,0.00720113,47429.0,47428.0,0.20108131]
[1641140678674,0.00720113,47429.0,47428.0,0.02108131]
[1641140679075,0.00720113,47433.0,47428.0,0.20108131]
[1641140679476,0.00720113,47435.0,47428.0,0.20108131]
[1641140679679,0.00720113,47435.0,47428.0,0.02108131]
[1641140679877,0.00720113,47432.0,47428.0,0.02108131]
[1641140680279,0.00720113,47434.0,47428.0,0.02108131]
[1641140680878,0.42883602,47435.0,47428.0,0.02108131]
[1641140681380,0.00720113,47433.0,47428.0,0.02108131]
[1641140681578,0.00720113,47434.0,47428.0,0.02108131]
[1641140683784,0.00720113,47434.0,47429.0,0.18]
[1641140684081,0.00720113,47434.0,47428.0,0.02108131]
[1641140684281,0.00720113,47434.0,47429.0,0.18]
[1641140685084,0.00720113,47434.0,47430.0,0.02108028]
[1641140686384,0.00720113,47435.0,47433.0,0.02107879]
[1641140686586,0.00720113,47435.0,47433.0,0.08888879]
[1641140686788,0.14033567,47436.0,47433.0,0.08888879]
[1641140688601,0.14033567,47436.0,47434.0,0.2107]
[1641140689804,0.009794,47440.0,47434.0,0.2107]
[1641140693307,0.009794,47440.0,47439.0,0.83762699]
[1641140695510,0.009794,47440.0,47438.0,0.83762699]
[1641140697107,0.12676999,47440.0,47438.0,0.83762699]
[1641140697708,0.12676999,47440.0,47439.0,0.83762699]
[1641140699711,0.12676999,47440.0,47433.0,0.02107879]
[1641140699914,0.12676999,47440.0,47435.0,1.43593198]
[1641140701613,0.59873892,47439.0,47435.0,1.49498198]
[1641140702014,0.60593998,47439.0,47435.0,1.49498198]
[1641140702413,0.00720106,47438.0,47435.0,1.49498198]
[1641140703014,0.60593998,47438.0,47435.0,1.49498198]
[1641140703617,0.00720106,47437.0,47435.0,1.49498198]
[1641140704713,0.00720106,47437.0,47435.0,0.05905]
[1641140704913,0.00720106,47437.0,47431.0,0.35103567]
[1641140705113,0.00720106,47438.0,47431.0,0.35103567]
[1641140705317,0.4288231,47436.0,47432.0,0.01197784]
[1641140705915,0.42162204,47436.0,47432.0,0.01197784]
[1641140706118,0.00720106,47435.0,47432.0,0.01197784]
[1641140709222,0.00720106,47440.0,47434.0,0.20107866]